Cogmind - Beta 9.5 @@@ ROGUE MODE // 2020.04.05 @ 08:56:21 Player: Someone64 Result: Destroyed by Y-45 Defender with Beam Rifle Performance ------------- Evolutions (1) 500 Regions Visited (2) 400 Robots Destroyed (11) 55 Value Destroyed (173) 173 Prototype IDs (0) 0 Alien Tech Used (0) 0 Bonus (0) 0 TOTAL SCORE: 1128 Bonus ------- None Cogmind --------- Core Integrity 0/400 Matter 160/300 Energy 100/100 System Corruption 0% Temperature Cool (9) Movement Treading (160) Location -9/Materials Parts ------- > --- POWER (2) -------- (None) > --- PROPULSION (2) --- Light Treads Light Treads > --- UTILITY (2) ------ Small Storage Unit > --- WEAPON (3) ------- (None) > --- INVENTORY (6) ---- (None) Peak State ------------ > --- POWER ------------ Ion Engine Light Ion Engine > --- PROPULSION ------- Wheel Wheel > --- UTILITY ---------- Small Storage Unit High-powered Tractor Beam > --- WEAPON ----------- Medium Laser Assault Rifle Light Assault Rifle > --- INVENTORY -------- Light Treads Light Treads Aluminum Leg Aluminum Leg Medium Laser [Rating: 10] Favorites ----------- Power Ion Engine Engine Ion Engine Propulsion Wheel Treads Light Treads Leg Aluminum Leg Wheel Wheel Utility Small Storage Unit Device High-powered Tractor Beam Storage Small Storage Unit Weapon Light Assault Rifle Energy Gun Medium Laser Ballistic Gun Light Assault Rifle Impact Weapon Flail Build | -11 -10 -9 ------- Run | Scr Mat Mat Slots Evolved 2 | . . 2 Power 1 | . . 1 Propulsion . | . . . Utility . | . . . Weapon 1 | . . 1 Parts Attached 22 | 6 5 11 Power 5 | 1 2 2 Engine 5 | 1 2 2 Core . | . . . Reactor . | . . . Propulsion 8 | 2 2 4 Treads 2 | . . 2 Leg 2 | . . 2 Wheel 4 | 2 2 . Hover . | . . . Flight . | . . . Utility 2 | 1 . 1 Device 1 | . . 1 Storage 1 | 1 . . Processor . | . . . Hackware . | . . . Protection . | . . . Artifact . | . . . Weapon 7 | 2 1 4 Energy Gun 2 | . . 2 Energy Cannon . | . . . Ballistic Gun 3 | 2 1 . Ballistic Cannon . | . . . Launcher . | . . . Special Weapon . | . . . Impact Weapon 2 | . . 2 Slashing Weapon . | . . . Piercing Weapon . | . . . Special Melee Weapon . | . . . Unidentified Prototypes . | . . . Parts Lost 13 | . . 13 Power 3 | . . 3 Propulsion 3 | . . 3 Utility 1 | . . 1 Weapon 6 | . . 6 Highest Loss Streak 13 | . . 13 Average Slot Usage (%) 73 | . 83 69 Engine 14 | . 12 15 Treads 1 | . . 2 Leg 2 | . . 2 Wheel 17 | . 28 12 Device 2 | . . 2 Storage 11 | . 14 11 Energy Gun 2 | . . 4 Ballistic Gun 18 | . 28 14 Impact Weapon 2 | . . 4 Naked Turns . | . . . Heaviest Build 18 | 12 12 18 Greatest Support 40 | 20 20 40 Greatest Overweight (x) 1 | . 1 1 Average Overweight (x) . | . . . Largest Inventory Capacity 6 | 6 6 6 Average Capacity 5 | 4 6 6 Most Carried 6 | 6 6 6 Average Carried 4 | 3 6 4 Final Capacity 6 | 6 6 6 Final Carried 6 | 6 6 . Class Distribution -------------------- 81% | Mutant 18% | Gunner Dominant Class ---------------- Mutant | -10/Materials Mutant | -9/Materials Resources | -11 -10 -9 ----------- Run | Scr Mat Mat Matter Collected 295 | 140 64 91 Remotely 43 | . . 43 Salvage Created 206 | . 64 142 Parts 19 | . 2 17 Haulers Intercepted . | . . . Recyclers Shooed . | . . . Parts Field Recycled . | . . . Retrieved Matter . | . . . Parts Self-Destructed . | . . . Prevented . | . . . Kills | -11 -10 -9 ------- Run | Scr Mat Mat Combat Hostiles Destroyed 10 | . 2 8 Melee 2 | . . 2 Guns 7 | . 2 5 AOE 1 | . . 1 Classes Destroyed 3 | . 2 1 Builder 1 | . . 1 Swarmer 8 | . 1 7 Grunt 2 | . 1 1 Best Kill Streak 5 | . 2 5 Combat Bots Only 5 | . 2 5 Max Kills in Single Turn 1 | . 1 1 Gunslinging . | . . . Exploded 1 | . . 1 Melee 1 | . . 1 Uniques/NPCs Destroyed . | . . . Combat | -11 -10 -9 -------- Run | Scr Mat Mat Damage Taken 1438 | . 58 1380 Core 409 | . 8 401 Absorbed by Shields . | . . . Core Remaining (%) 98 | 100 96 . Volleys Fired 26 | . 6 20 Largest 3 | . 2 3 Hottest 90 | . 40 90 Shots Fired 61 | . 12 49 Gun 61 | . 12 49 Cannon . | . . . Launcher . | . . . Special . | . . . Kinetic 44 | . 12 32 Thermal 17 | . . 17 Explosive . | . . . Electromagnetic . | . . . Robot Hit Streak 4 | . 4 3 Robot Miss Streak 9 | . 2 9 Penetration Max . | . . . Secondary Targets 1 | . . 1 Max Gunslinging Chain 1 | . . 1 Shots Hit Robots 30 | . 7 23 Core Hits 13 | . 3 10 Critical Hits . | . . . Critical Kills . | . . . Critical Parts Destroyed . | . . . Melee Attacks 13 | . . 13 Impact 13 | . . 13 Slashing . | . . . Piercing . | . . . Sneak Attacks . | . . . Combat Hostiles . | . . . Follow-up Attacks . | . . . Damage Inflicted 678 | . 101 577 Guns 316 | . 101 215 Cannons . | . . . Explosions 160 | . . 160 Melee 202 | . . 202 Ramming . | . . . Kinetic 214 | . 101 113 Thermal 262 | . . 262 Explosive . | . . . Electromagnetic . | . . . Impact 202 | . . 202 Slashing . | . . . Piercing . | . . . Highest Corruption . | . . . Average Corruption . | . . . Corruption Purged . | . . . Overload Shots . | . . . Overflow Damage 63 | . . 63 Projectiles . | . . . Explosions 40 | . . 40 Melee 23 | . . 23 Knockbacks 1 | . . 1 Impact 1 | . . 1 Kinetic . | . . . Secondary . | . . . Self-Inflicted Damage 112 | . . 112 Shots 1 | . . 1 Rammed . | . . . Targets Rammed . | . . . Kicked . | . . . Crushed . | . . . Highest Temperature 340 | . 6 340 Average Temperature 210 | . 6 218 Received Heat Transfer 255 | . 12 243 Effects 3 | . . 3 Energy Bleed 1 | . . 1 Matter Decay 1 | . . 1 Short Circuit 1 | . . 1 Siege Activations . | . . . Robots Corrupted . | . . . Combat Hostiles . | . . . Parts Fried . | . . . Impact Corruptions 2 | . . 2 Robots Melted . | . . . Combat Hostiles . | . . . Parts Melted . | . . . Heat Transferred 446 | . . 446 Parts Sabotaged . | . . . Parts Stolen . | . . . Parts Stripped . | . . . Power Chain Reactions . | . . . Missiles Intercepted . | . . . Alert | -11 -10 -9 ------- Run | Scr Mat Mat Peak Influence 181 | . 50 181 Average Influence 67 | . 25 113 Maximum Alert Level . | . . . Low Security (%) 100 | 100 100 100 Level 1 . | . . . Level 2 . | . . . Level 3 . | . . . Level 4 . | . . . Level 5 . | . . . High Security . | . . . Max Security . | . . . Squads Dispatched 2 | . . 2 Investigation . | . . . Extermination . | . . . Reinforcement 2 | . . 2 Assault . | . . . Garrison . | . . . Intercept . | . . . Construction Impeded . | . . . Haulers Reinforced . | . . . Stealth | -11 -10 -9 --------- Run | Scr Mat Mat Distress Signals 3 | . . 3 Communications Jammed . | . . . Distress Signals . | . . . Times Spotted 21 | . 4 17 Peak Tracking Total 8 | . 5 8 Tactical Retreats 2 | . 2 . Traps | -11 -10 -9 ------- Run | Scr Mat Mat Traps Triggered 2 | . 2 . Indirectly . | . . . Trap Hack Attempts . | . . . Triggered . | . . . Disarmed . | . . . Reprogrammed . | . . . Reused . | . . . Traps Extracted . | . . . Installed . | . . . Triggered . | . . . Machines | -11 -10 -9 ---------- Run | Scr Mat Mat Machines Disabled 2 | . . 2 Max in Single Turn 1 | . . 1 Machines Sabotaged . | . . . Garrisons Compromised . | . . . Overloaded Fab Kills . | . . . Fab Network Shutdowns . | . . . Hacking | -11 -10 -9 --------- Run | Scr Mat Mat Machines Accessed 2 | . 1 1 Terminals 2 | . 1 1 Fabricators . | . . . Repair Stations . | . . . Recycling Units . | . . . Scanalyzers . | . . . Garrison Access . | . . . Total Hacks 5 | . 2 3 Successful 3 | . 1 2 Failed 2 | . 1 1 Catastrophic 1 | . 1 . Database Lockouts . | . . . Manual 1 | . . 1 Terminals 5 | . 2 3 Fabricators . | . . . Repair Stations . | . . . Recycling Units . | . . . Scanalyzers . | . . . Garrison Access . | . . . Terminal Hacks 2 | . 1 1 Transport Status 1 | . . 1 Registered Components 1 | . 1 . Fabricator Hacks . | . . . Repair Station Hacks . | . . . Recycling Unit Hacks . | . . . Scanalyzer . | . . . Garrison Access Hacks . | . . . Unauthorized Hacks 2 | . . 2 Terminals 1 | . . 1 Track 1 | . . 1 Fabricators . | . . . Repair Stations . | . . . Recycling Units . | . . . Scanalyzers . | . . . Garrison Access . | . . . Data Cores Recovered . | . . . Used . | . . . Hacking Detections 2 | . 1 1 Full Trace Events 1 | . 1 . Feedback Events . | . . . Feedback Blocked . | . . . Robot Schematics Acquired . | . . . Robots Built . | . . . Matter . | . . . Time . | . . . Total Robot Build Rating . | . . . Part Schematics Acquired . | . . . Parts Built . | . . . Matter . | . . . Time . | . . . Total Part Build Rating . | . . . Parts Repaired . | . . . Time . | . . . Parts Recycled . | . . . Recycled Matter . | . . . Retrieved Matter . | . . . Retrieved Components . | . . . Parts Scanalyzed . | . . . Part Schematics Acquired . | . . . Parts Damaged . | . . . Bothacking | -11 -10 -9 ------------ Run | Scr Mat Mat Used RIF Installer . | . . . Robots Hacked . | . . . Non-combat . | . . . Combat . | . . . Robot Hacks Applied . | . . . Relay Couplers Released . | . . . Robots Rewired . | . . . Allies Hacked . | . . . Hacks Repelled . | . . . Allies | -11 -10 -9 -------- Run | Scr Mat Mat Total Allies . | . . . Largest Group . | . . . Highest-Rated Group . | . . . Highest-Rated Ally . | . . . Total Orders . | . . . Ally Attacks . | . . . Total Damage . | . . . Kills . | . . . Allies Corrupted . | . . . Allies Melted . | . . . Intel | -11 -10 -9 ------- Run | Scr Mat Mat Robot Analysis Total . | . . . Derelict Logs Recovered . | . . . Drone Launches . | . . . Drone Recoveries . | . . . Exploration | -11 -10 -9 ------------- Run | Scr Mat Mat Turns Passed 339 | 72 84 183 Spaces Moved 237 | 71 74 92 Core 5 | 4 . 1 Treads 2 | . . 2 Legs 6 | . . 6 Wheels 224 | 67 74 83 Hover . | . . . Flight . | . . . Fastest Speed 50 | 50 80 80 Average Speed 81 | 78 80 85 Slowest Speed 160 | 80 90 160 Overloaded Moves . | . . . Propulsion Burnouts . | . . . Robots Hopped . | . . . Cave-ins Triggered . | . . . Exploration Rate (%) 13 | 4 20 16 Regions Visited 2 Branch Regions . Pre-discovered Areas . | . . . Known Exits Taken . | . . . Unknown Exits Taken 2 | 1 1 . Scrap Searched . | . . . Spaces Dug . | . . . Terrain Destroyed 12 | . . 12 Melee . | . . . Projectile . | . . . AOE 12 | . . 12 Actions | -11 -10 -9 --------- Run | Scr Mat Mat Total 306 | 85 84 137 Wait . | . . . Move 235 | 70 73 92 Hop . | . . . Pick Up 8 | 8 . . Fast Attach 15 | 5 5 5 Attach 7 | 1 . 6 Detach . | . . . Swap . | . . . Drop 2 | 1 . 1 Fire 26 | . 6 20 Melee 13 | . . 13 Ram . | . . . Kick . | . . . Crush . | . . . Escape Stasis . | . . . Rewire . | . . . Trap . | . . . Miscellaneous . | . . . Route ------- -11/Scrapyard -10/Materials -9/Materials History --------- Turn | Location | Event 10 | -11/Scrapyard | Discovered new exit (range 16) 73 | -11/Scrapyard | Entered Materials 150 | -10/Materials | Discovered new exit (range 8) 157 | -10/Materials | Entered another Materials area 157 | -9/Materials | Evolved 2 slots: Power x1, Weapon x1 307 | -9/Materials | Core integrity fell below 50% 328 | -9/Materials | Core integrity fell below 20% 340 | -9/Materials | Destroyed by Y-45 Defender with Beam Rifle Last Messages --------------- 00321_ G-34 Mercenary system corrupted by crushing effect. 00322_ G-34 Mercenary destroyed. 00322_ K-01 Serf collects debris. 00324_ Acquired 11 matter. 00324_ Aluminum Leg destroyed. 00325_ K-01 Serf collects debris. 00326_ Acquired Lgt. Ion Engine. 00329_ K-01 Serf collects debris. 00329_ Destroyed Heat Sink. 00329_ G-34 Mercenary system corrupted by crushing effect. 00332_ K-01 Serf collects debris. 00332_ G-34 Mercenary knocked back. 00333_ K-01 Serf collects debris. 00335_ Lgt. Ion Engine destroyed. 00336_ K-01 Serf collects debris. 00336_ G-34 Mercenary destroyed. 00336_ K-01 Serf collects debris. 00337_ Acquired 37 matter. 00339_ K-01 Serf collects debris. 00339_ Flail destroyed. Map ----- +----------------------------------------------------+ | " #?????????????# # ## #?# """ #????? | | "T ############### # ## #?# """ #????? | | ###+### #?# #????? | | ### ########### #??? ????? | | ??## ##?????????# ######+###### | | ???# #??????????# | | ???# #??????????# ############## | | ???# +??????????#######????????????# | | ???# #????????????????#???? ????####+######## | | ???# #????????????????# """"" ????# #???? | | ???# #???o????????????# """"""""????# [[ #???? | | ???# #????????????????? """ ""????# [ #???? | | ???# #?????????????????? * = ????# [[ #???? | | ???# #?????????????????#####+######## #???? | | ???# #??????????########### = + #???? | | ???# ????????? * ###########???? | | ???# ???????? u ##????????????? | | ???# ?????????"" """ ##????????????? | | ???####?????????"" """ ##????????????? | | ????????????????"" """ *##????????????? | | ??????????????? %|##????????????? | | ??????????????? k [!k##########????? | | ?????????????????" """ % %!a[ % ???? | | ?????????????????" """ =%=!!Y *=[ * ???? | | ???????????????""" """us==*!!/= t u ???? | | ??????????# @ !s % ############????? | | ??????????# r ########???????????????? | | ??????????# """ """ Y #??????????????????????? | | ???????????????""" """ #??????????????????????? | | ?????????????????" """ ??????????????????????? | | ??????????????????? ??????????????????????? | | ?????????????????? ??????????????????????? | | ??????????????????###+#####??????????????????????? | | ???????????????????? ????????????????????????????? | | ??????????????????? ?????????????????????????????? | | ??????????????????# ?????????????????????????????? | | ??????????????????#??????????????????????????????? | | ?????????????????????????????????????????????????? | | ?????????????????????????????????????????????????? | | ?????????????????????????????????????????????????? | | ?????????????????????????????????????????????????? | | ?????????????????????????????????????????????????? | | ?????????????????????????????????????????????????? | | ?????????????????????????????????????????????????? | | ?????????????????????????????????????????????????? | | ?????????????????????????????????????????????????? | | ?????????????????????????????????????????????????? | | ?????????????????????????????????????????????????? | | ?????????????????????????????????????????????????? | | ?????????????????????????????????????????????????? | +----------------------------------------------------+ Best States ------------- Heat Dissipation 28 Energy Generation 15 Energy Capacity 275 Matter Stores 220 Matter Capacity 300 Sight Range 16 Terrain Scan Density 10 Evasion (%) 44 Recoil Reduction 2 Item Schematics ----------------- None Robot Schematics ------------------ None Fabricated ------------ Nothing Alien Tech Used ----------------- None Achievements -------------- None Challenges ------------ None Game ------ Seed CloakDecoderCompactor Manual? 0 Play Time 00:13:08 Cumulative 8.4 hours Start 2020.04.05 @ 08:36:03 End 2020.04.05 @ 08:56:21 Sessions 1 Manual Loads 0 Difficulty Rogue Special Mode None Game No. 25 Rogue 25 Adventurer 0 Explorer 0 Win Type - Total 0 Types 0/0/0/0/0/0/0 Lore% 7 Gallery% 21 Achievement% 16 Wizard Run 0 Options --------- ASCII 0 Keyboard 0 Movement Numpad Keybinds 0 Fullscreen 2 Font 16/Cog Map View 76x50 Tactical HUD 1 Map Filters NONE Filters NONE Steam 1 RUN: a31ebd3a-1927-493f-ac87-99adc8cb1d94